[Event "EYCC Open-U12 2019"]
[Site "Bratislava"]
[Date "2019.08.04"]
[Round "3.13"]
[White "Kuhn, Clement"]
[Black "Bat, Bilguun"]
[Result "0-1"]
[ECO "E15"]
[WhiteElo "1979"]
[BlackElo "2093"]
[Annotator "NA"]
[PlyCount "119"]
[EventDate "2019.08.02"]
[EventType "swiss"]
[EventCountry "SVK"]
[SourceTitle "playchess.com"]
[Source "ChessBase"]
[SourceQuality "1"]
[TimeControl "40/5400+30:1800+30"]

1. d4 {[%emt 0:00:00]} Nf6 {[%emt 0:00:00]} 2. Nf3 {[%emt 0:00:00]} e6 {[%emt 0:00:00]} 3. c4 {[%emt 0:00:00]} b6 {[%emt 0:00:04]} 4. g3 {[%emt 0:00:00]} Ba6 {[%emt 0:00:17]} 5. Qa4 {[%emt 0:06:17]} c5 {[%emt 0:10:43]} 6. Bg2 {[%emt 0:05:06]} Bb7 {[%emt 0:01:09]} 7. e3 {[%emt 0:05:31]} h5 {[%emt 0:10:51]} 8. h4 {[%emt 0:13:45]} Nc6 {[%emt 0:06:10]} 9. O-O {[%emt 0:02:01]} Be7 {[%emt 0:03:03]} 10. Nc3 {[%emt 0:05:23]} Na5 {[%emt 0:02:18]} 11. Ne5 {[%emt 0:15:41]} Bxg2 {[%emt 0:10:08]} 12. Kxg2 {[%emt 0:00:12]} Ng4 {[%emt 0:00:41]} 13. Nf3 {[%emt 0:14:51]} O-O {[%emt 0:02:34]} 14. d5 {[%emt 0:03:58]} e5 {[%emt 0:02:34]} 15. e4 {[%emt 0:02:14]} Nb7 {[%emt 0:03:00]} 16. Qc2 {[%emt 0:00:44]} a6 {[%emt 0:01:23]} 17. Qe2 {[%emt 0:01:28]} Nd6 {[%emt 0:06:50]} 18. Bd2 {[%emt 0:03:14]} Qe8 {[%emt 0:10:12]} 19. b3 {[%emt 0:03:49]} Bd8 {[%emt 0:02:27]} 20. Ne1 {[%emt 0:02:55]} f5 {[%emt 0:02:05]} 21. f3 {[%emt 0:01:04]} Nf6 {[%emt 0:00:27]} 22. Nd3 {[%emt 0:00:35]} Bc7 {[%emt 0:03:05]} 23. Bg5 {[%emt 0:02:58]} fxe4 {[%emt 0:02:04]} 24. fxe4 {[%emt 0:00:27]} Ng4 {[%emt 0:00:50]} 25. Rxf8+ {[%emt 0:00:15]} Qxf8 {[%emt 0:00:13]} 26. Rf1 {[%emt 0:00:16]} Qe8 {[%emt 0:00:38]} 27. Nf2 {[%emt 0:00:37]} Nxf2 {[%emt 0:00:25]} 28. Rxf2 {[%emt 0:00:34]} b5 {[%emt 0:05:53]} 29. cxb5 {[%emt 0:02:07]} Ba5 {[%emt 0:00:11]} 30. Na4 {[%emt 0:03:47]} axb5 {[%emt 0:01:46]} 31. Nxc5 {[%emt 0:00:07]} Bb6 {[%emt 0:00:13]} 32. Be3 {[%emt 0:02:11]} Qg6 {[%emt 0:01:40]} 33. Qf3 {[%emt 0:02:58]} Bxc5 {[%emt 0:00:58]} 34. Bxc5 {[%emt 0:00:00]} Nxe4 {[%emt 0:00:11]} 35. Qd3 {[%emt 0:01:14]} Qg4 {[%emt 0:00:47]} 36. Rc2 {[%emt 0:00:38]} Nxg3 {[%emt 0:00:27]} 37. Qf3 {[%emt 0:00:47]} Qg6 {[%emt 0:01:06]} 38. Rb2 {[%emt 0:00:13]} Ne4+ {[%emt 0:00:13]} 39. Kh2 {[%emt 0:00:18]} Nxc5 {[%emt 0:00:13]} 40. d6 {[%emt 0:00:00]} e4 {[%emt 0:00:00]} 41. Qc3 {[%emt 0:04:52]} Qxd6+ {[%emt 0:02:09]} 42. Kg1 {[%emt 0:00:46]} Nd3 {[%emt 0:01:10]} 43. Rc2 {[%emt 0:01:43]} Rf8 {[%emt 0:00:25]} 44. Rg2 {[%emt 0:01:03]} Qc5+ {[%emt 0:00:08]} 45. Qxc5 {[%emt 0:00:04]} Nxc5 {[%emt 0:00:03]} 46. Rg5 {[%emt 0:01:10]} Nd3 {[%emt 0:00:08]} 47. Rg3 {[%emt 0:00:32]} Rf3 {[%emt 0:00:09]} 48. Rg2 {[%emt 0:00:09]} e3 {[%emt 0:00:04]} 49. Re2 {[%emt 0:00:16]} Nf4 {[%emt 0:00:09]} 50. Re1 {[%emt 0:00:25]} e2 {[%emt 0:00:08]} 51. a4 {[%emt 0:00:08]} Rxb3 {[%emt 0:00:05]} 52. axb5 {[%emt 0:00:10]} Rxb5 {[%emt 0:00:22]} 53. Kh2 {[%emt 0:00:17]} Rb3 {[%emt 0:00:12]} 54. Kg1 {[%emt 0:01:12]} d5 {[%emt 0:00:08]} 55. Kh2 {[%emt 0:00:08]} d4 {[%emt 0:00:04]} 56. Kg1 {[%emt 0:00:04]} d3 {[%emt 0:00:05]} 57. Kh2 {[%emt 0:00:06]} d2 {[%emt 0:00:06]} 58. Ra1 {[%emt 0:00:17]} e1=Q 59. Ra8+ Kf7 60. Ra1 0-1

[Event "EYCC Open-U12 2019"]
[Site "Bratislava"]
[Date "2019.08.04"]
[Round "3.14"]
[White "Konyves, Almos"]
[Black "von Mettenheim, Johannes"]
[Result "0-1"]
[ECO "B13"]
[WhiteElo "2104"]
[BlackElo "1809"]
[Annotator "NA"]
[PlyCount "86"]
[EventDate "2019.08.02"]
[EventType "swiss"]
[EventCountry "SVK"]
[SourceTitle "playchess.com"]
[Source "ChessBase"]
[SourceQuality "1"]
[TimeControl "40/5400+30:1800+30"]

1. e4 {[%emt 0:00:00]} c6 {[%emt 0:00:00]} 2. d4 {[%emt 0:00:00]} d5 {[%emt 0:00:00]} 3. exd5 {[%emt 0:00:00]} cxd5 {[%emt 0:00:00]} 4. Bd3 {[%emt 0:00:00]} Nc6 {[%emt 0:00:00]} 5. c3 {[%emt 0:00:04]} Nf6 {[%emt 0:00:00]} 6. Bf4 {[%emt 0:00:09]} g6 {[%emt 0:00:34]} 7. Nd2 {[%emt 0:02:47]} Bg7 {[%emt 0:00:06]} 8. Ngf3 {[%emt 0:00:11]} O-O {[%emt 0:00:10]} 9. O-O {[%emt 0:00:51]} Nh5 {[%emt 0:03:53]} 10. Be3 {[%emt 0:03:09]} Qc7 {[%emt 0:00:23]} 11. Qb3 {[%emt 0:13:33]} Rd8 {[%emt 0:01:11]} 12. Rfe1 {[%emt 0:02:57]} Nf4 {[%emt 0:04:43]} 13. Bf1 {[%emt 0:06:08]} Rb8 {[%emt 0:07:47]} 14. Rac1 {[%emt 0:13:36]} Ne6 {[%emt 0:12:37]} 15. g3 {[%emt 0:03:55]} b6 {[%emt 0:12:05]} 16. Bg2 {[%emt 0:07:49]} Na5 {[%emt 0:03:17]} 17. Qd1 {[%emt 0:01:40]} Ba6 {[%emt 0:02:21]} 18. Ng5 {[%emt 0:03:17]} Nxg5 {[%emt 0:05:22]} 19. Bxg5 {[%emt 0:00:12]} f6 {[%emt 0:00:16]} 20. Bf4 {[%emt 0:00:36]} e5 {[%emt 0:00:09]} 21. dxe5 {[%emt 0:00:05]} fxe5 {[%emt 0:00:05]} 22. Bg5 {[%emt 0:00:05]} Rd7 {[%emt 0:06:34]} 23. Bh3 {[%emt 0:09:21]} Rd6 {[%emt 0:01:12]} 24. Nf3 {[%emt 0:02:17]} h6 {[%emt 0:01:18]} 25. Bd2 {[%emt 0:01:10]} Nc4 {[%emt 0:04:32]} 26. b3 {[%emt 0:01:09]} Nb2 {[%emt 0:00:45]} 27. Qc2 {[%emt 0:00:05]} Nd3 {[%emt 0:00:10]} 28. Nh4 {[%emt 0:02:59]} Qf7 {[%emt 0:06:51]} 29. f4 {[%emt 0:02:59]} Nxe1 {[%emt 0:05:51]} 30. Rxe1 {[%emt 0:00:34]} e4 {[%emt 0:00:20]} 31. Be3 {[%emt 0:04:56]} Bd3 {[%emt 0:02:24]} 32. Qd2 {[%emt 0:00:55]} Rc6 {[%emt 0:00:43]} 33. Rc1 {[%emt 0:00:42]} Qc7 {[%emt 0:00:37]} 34. Bg4 {[%emt 0:04:35]} Bxc3 {[%emt 0:02:03]} 35. Rxc3 {[%emt 0:02:06]} Rxc3 {[%emt 0:00:20]} 36. Be6+ {[%emt 0:00:06]} Kh7 {[%emt 0:00:22]} 37. f5 {[%emt 0:02:36]} g5 {[%emt 0:00:33]} 38. Bxg5 {[%emt 0:00:28]} Qc5+ {[%emt 0:01:51]} 39. Be3 {[%emt 0:05:08]} d4 {[%emt 0:00:40]} 40. f6 {[%emt 0:00:00]} dxe3 {[%emt 0:00:00]} 41. Qe1 {[%emt 0:02:56]} Rc1 {[%emt 0:01:32]} 42. Bf5+ {[%emt 0:00:07]} Qxf5 {[%emt 0:00:10]} 43. Qxc1 {[%emt 0:00:04]} Qf2+ {[%emt 0:00:05]} 0-1

[Event "EYCC Open-U12 2019"]
[Site "Bratislava"]
[Date "2019.08.04"]
[Round "3.15"]
[White "Rotunno, Flavio"]
[Black "Lystsov, Leonid"]
[Result "0-1"]
[ECO "E91"]
[WhiteElo "1819"]
[BlackElo "2086"]
[Annotator "NA"]
[PlyCount "98"]
[EventDate "2019.08.02"]
[EventType "swiss"]
[EventCountry "SVK"]
[SourceTitle "playchess.com"]
[Source "ChessBase"]
[SourceQuality "1"]
[TimeControl "40/5400+30:1800+30"]

1. d4 {[%emt 0:00:00]} g6 {[%emt 0:00:00]} 2. Nf3 {[%emt 0:00:00]} Bg7 {[%emt 0:00:00]} 3. c4 {[%emt 0:00:00]} d6 {[%emt 0:00:38]} 4. Nc3 {[%emt 0:00:01]} Nf6 {[%emt 0:00:19]} 5. e4 {[%emt 0:00:04]} O-O {[%emt 0:00:26]} 6. Be2 {[%emt 0:00:15]} Na6 {[%emt 0:01:11]} 7. O-O {[%emt 0:06:12]} e5 {[%emt 0:00:50]} 8. Be3 {[%emt 0:22:34]} Qe8 {[%emt 0:26:02]} 9. d5 {[%emt 0:09:13]} Ng4 {[%emt 0:07:06]} 10. Bc1 {[%emt 0:02:53]} Bh6 {[%emt 0:10:40]} 11. Nxe5 {[%emt 0:14:28]} Nxf2 {[%emt 0:01:08]} 12. Rxf2 {[%emt 0:05:49]} Bxc1 {[%emt 0:01:06]} 13. Rxc1 {[%emt 0:02:05]} Qxe5 {[%emt 0:01:42]} 14. Qd2 {[%emt 0:07:53]} Bd7 {[%emt 0:02:52]} 15. Rcf1 {[%emt 0:12:01]} Nc5 {[%emt 0:04:18]} 16. Qf4 {[%emt 0:07:27]} Rae8 {[%emt 0:08:19]} 17. Qxe5 {[%emt 0:01:34]} Rxe5 {[%emt 0:00:17]} 18. Bf3 {[%emt 0:02:00]} a5 {[%emt 0:00:38]} 19. b3 {[%emt 0:01:55]} Kg7 {[%emt 0:02:09]} 20. Rb1 {[%emt 0:00:41]} g5 {[%emt 0:03:13]} 21. g3 {[%emt 0:01:11]} b6 {[%emt 0:01:19]} 22. a3 {[%emt 0:01:13]} f5 {[%emt 0:06:28]} 23. Re2 {[%emt 0:01:12]} fxe4 {[%emt 0:00:57]} 24. Bxe4 {[%emt 0:00:11]} Nxe4 {[%emt 0:01:28]} 25. Nxe4 {[%emt 0:00:36]} Rfe8 {[%emt 0:00:53]} 26. Rbe1 {[%emt 0:00:09]} Bg4 {[%emt 0:00:38]} 27. Re3 {[%emt 0:00:29]} Bf5 {[%emt 0:00:28]} 28. Nxd6 {[%emt 0:00:41]} cxd6 {[%emt 0:00:07]} 29. Rxe5 {[%emt 0:00:06]} Rxe5 {[%emt 0:00:05]} 30. Rxe5 {[%emt 0:00:07]} dxe5 {[%emt 0:00:04]} 31. Kf2 {[%emt 0:00:08]} Kf6 {[%emt 0:00:18]} 32. b4 {[%emt 0:00:09]} axb4 {[%emt 0:00:04]} 33. axb4 {[%emt 0:00:02]} Bd3 {[%emt 0:00:22]} 34. c5 {[%emt 0:00:07]} bxc5 {[%emt 0:00:02]} 35. bxc5 {[%emt 0:00:01]} Be4 {[%emt 0:00:06]} 36. d6 {[%emt 0:00:23]} Bc6 {[%emt 0:00:04]} 37. d7 {[%emt 0:01:40]} Bxd7 {[%emt 0:00:05]} 38. Ke3 {[%emt 0:01:03]} g4 {[%emt 0:00:05]} 39. Kd3 {[%emt 0:00:28]} Kf5 {[%emt 0:00:06]} 40. Ke3 {[%emt 0:00:00]} e4 {[%emt 0:00:00]} 41. Kd4 {[%emt 0:00:49]} Bc6 {[%emt 0:00:07]} 42. Ke3 {[%emt 0:00:14]} Ke5 {[%emt 0:00:04]} 43. Ke2 {[%emt 0:00:10]} Kd4 {[%emt 0:00:03]} 44. Kf2 {[%emt 0:00:06]} e3+ {[%emt 0:00:05]} 45. Ke2 {[%emt 0:00:09]} Bf3+ {[%emt 0:00:04]} 46. Ke1 {[%emt 0:00:04]} Kd3 {[%emt 0:00:03]} 47. Kf1 Kd2 {[%emt 0:00:03]} 48. h4 {[%emt 0:00:47]} e2+ {[%emt 0:00:04]} 49. Kg1 {[%emt 0:00:06]} e1=Q+ {[%emt 0:00:08]} 0-1

[Event "EYCC Open-U12 2019"]
[Site "Bratislava"]
[Date "2019.08.04"]
[Round "3.16"]
[White "Saveljev, Ivan"]
[Black "Makridis, Dimitrios"]
[Result "0-1"]
[ECO "B29"]
[WhiteElo "2040"]
[BlackElo "1798"]
[Annotator "NA"]
[PlyCount "70"]
[EventDate "2019.08.02"]
[EventType "swiss"]
[EventCountry "SVK"]
[SourceTitle "playchess.com"]
[Source "ChessBase"]
[SourceQuality "1"]
[TimeControl "40/5400+30:1800+30"]

1. e4 {[%emt 0:00:00]} c5 {[%emt 0:00:00]} 2. Nf3 {[%emt 0:00:00]} Nf6 {[%emt 0:00:00]} 3. e5 {[%emt 0:00:00]} Nd5 {[%emt 0:00:00]} 4. Nc3 {[%emt 0:00:12]} e6 {[%emt 0:00:00]} 5. b3 {[%emt 0:00:14]} Nxc3 {[%emt 0:04:38]} 6. dxc3 {[%emt 0:00:17]} d5 {[%emt 0:00:40]} 7. Bd3 {[%emt 0:04:47]} Nc6 {[%emt 0:03:01]} 8. Qe2 {[%emt 0:04:03]} Be7 {[%emt 0:01:25]} 9. Bd2 {[%emt 0:09:15]} Qc7 {[%emt 0:01:52]} 10. c4 {[%emt 0:06:57]} dxc4 {[%emt 0:14:28]} 11. Bxc4 {[%emt 0:04:50]} b6 {[%emt 0:01:34]} 12. Rd1 {[%emt 0:04:12]} Bb7 {[%emt 0:04:08]} 13. Bc3 {[%emt 0:05:53]} O-O {[%emt 0:01:40]} 14. h4 {[%emt 0:06:33]} Rfd8 {[%emt 0:22:20]} 15. Bd3 {[%emt 0:11:26]} Nb4 {[%emt 0:10:12]} 16. Bxb4 {[%emt 0:03:36]} cxb4 {[%emt 0:00:08]} 17. Rh3 {[%emt 0:01:22]} Bxf3 {[%emt 0:09:13]} 18. gxf3 {[%emt 0:09:34]} Rd5 {[%emt 0:03:31]} 19. f4 {[%emt 0:00:21]} Rad8 {[%emt 0:00:15]} 20. h5 {[%emt 0:03:42]} Rd4 {[%emt 0:01:41]} 21. Qf3 {[%emt 0:03:13]} f6 {[%emt 0:03:39]} 22. Rg3 {[%emt 0:03:41]} f5 {[%emt 0:05:08]} 23. Ke2 {[%emt 0:01:15]} Bf8 {[%emt 0:01:48]} 24. Rdg1 {[%emt 0:00:26]} Kh8 {[%emt 0:01:12]} 25. Rg5 {[%emt 0:04:39]} Qc3 {[%emt 0:03:00]} 26. R5g3 {[%emt 0:05:42]} Qb2 {[%emt 0:00:27]} 27. Qc6 {[%emt 0:01:03]} Rxf4 {[%emt 0:01:54]} 28. Qxe6 {[%emt 0:02:34]} Rxd3 {[%emt 0:01:05]} 29. Rxd3 {[%emt 0:01:03]} Qxc2+ {[%emt 0:00:06]} 30. Rd2 {[%emt 0:00:10]} Re4+ {[%emt 0:00:04]} 31. Kf1 {[%emt 0:01:14]} Qxd2 {[%emt 0:00:20]} 32. Qe8 {[%emt 0:00:38]} Qe2+ {[%emt 0:00:12]} 33. Kg2 {[%emt 0:00:07]} Rg4+ {[%emt 0:00:06]} 34. Kh3 {[%emt 0:00:33]} Qf3+ {[%emt 0:00:08]} 35. Rg3 {[%emt 0:00:17]} Qh1# {[%emt 0:00:05]} 0-1

[Event "EYCC Open-U12 2019"]
[Site "Bratislava"]
[Date "2019.08.04"]
[Round "3.17"]
[White "Maurizzi, Marc Andria"]
[Black "Wahlgreen, Noah"]
[Result "1-0"]
[ECO "B12"]
[WhiteElo "2412"]
[BlackElo "1743"]
[Annotator "NA"]
[PlyCount "75"]
[EventDate "2019.08.02"]
[EventType "swiss"]
[EventCountry "SVK"]
[SourceTitle "playchess.com"]
[Source "ChessBase"]
[SourceQuality "1"]
[TimeControl "40/5400+30:1800+30"]

1. e4 {[%emt 0:00:00]} c6 {[%emt 0:00:00]} 2. d4 {[%emt 0:00:00]} d5 {[%emt 0:00:00]} 3. e5 {[%emt 0:00:00]} Bf5 {[%emt 0:00:00]} 4. h4 {[%emt 0:00:00]} h5 {[%emt 0:00:02]} 5. Bd3 {[%emt 0:00:00]} Bxd3 {[%emt 0:00:10]} 6. Qxd3 {[%emt 0:00:01]} Qa5+ {[%emt 0:00:30]} 7. Nd2 {[%emt 0:00:05]} Qa6 {[%emt 0:01:09]} 8. e6 {[%emt 0:00:04]} Qxd3 {[%emt 0:03:28]} 9. exf7+ {[%emt 0:00:03]} Kxf7 {[%emt 0:00:10]} 10. cxd3 {[%emt 0:00:02]} Na6 {[%emt 0:12:57]} 11. Ngf3 {[%emt 0:08:30]} g6 {[%emt 0:07:03]} 12. Ne5+ {[%emt 0:02:25]} Kg7 {[%emt 0:00:34]} 13. Rh3 {[%emt 0:03:43]} Rd8 {[%emt 0:03:02]} 14. Ndf3 {[%emt 0:02:01]} Rd6 {[%emt 0:11:12]} 15. Ng5 {[%emt 0:03:10]} Nh6 {[%emt 0:01:01]} 16. Bf4 {[%emt 0:01:19]} Rf6 {[%emt 0:03:22]} 17. Nd7 {[%emt 0:00:58]} Rxf4 {[%emt 0:02:42]} 18. Ne6+ {[%emt 0:00:02]} Kh7 {[%emt 0:01:03]} 19. Nxf4 {[%emt 0:00:08]} Nf5 {[%emt 0:01:58]} 20. Nxf8+ {[%emt 0:11:02]} Rxf8 {[%emt 0:00:18]} 21. Ne6 {[%emt 0:01:17]} Rf6 {[%emt 0:00:31]} 22. Ng5+ {[%emt 0:00:05]} Kg7 {[%emt 0:00:12]} 23. Nf3 {[%emt 0:05:40]} Nc7 {[%emt 0:00:34]} 24. Kd2 {[%emt 0:00:42]} Nb5 {[%emt 0:03:28]} 25. Re1 {[%emt 0:01:25]} Kf8 {[%emt 0:02:26]} 26. Ne5 {[%emt 0:02:03]} Ke8 {[%emt 0:01:39]} 27. f3 {[%emt 0:00:59]} Nbxd4 {[%emt 0:01:31]} 28. g4 {[%emt 0:00:47]} Ng7 {[%emt 0:01:50]} 29. Rg3 {[%emt 0:01:54]} Re6 {[%emt 0:05:28]} 30. Kd1 {[%emt 0:03:27]} hxg4 {[%emt 0:08:46]} 31. fxg4 {[%emt 0:00:37]} Rf6 {[%emt 0:00:41]} 32. Rg2 {[%emt 0:03:54]} Kd8 {[%emt 0:07:03]} 33. Rh2 {[%emt 0:02:08]} Ke8 {[%emt 0:01:18]} 34. h5 {[%emt 0:01:55]} gxh5 {[%emt 0:00:15]} 35. gxh5 {[%emt 0:00:04]} Ngf5 {[%emt 0:00:26]} 36. Ng4 {[%emt 0:00:43]} Rf8 {[%emt 0:01:17]} 37. Rh3 {[%emt 0:01:33]} Rg8 {[%emt 0:01:45]} 38. Nf6+ {[%emt 0:00:11]} 1-0

[Event "EYCC Open-U12 2019"]
[Site "Bratislava"]
[Date "2019.08.04"]
[Round "3.18"]
[White "Costa, Leonardo"]
[Black "Pingin, Artem"]
[Result "1-0"]
[ECO "B93"]
[WhiteElo "2002"]
[BlackElo "2155"]
[Annotator "NA"]
[PlyCount "95"]
[EventDate "2019.08.02"]
[EventType "swiss"]
[EventCountry "SVK"]
[SourceTitle "playchess.com"]
[Source "ChessBase"]
[SourceQuality "1"]
[TimeControl "40/5400+30:1800+30"]

1. e4 {[%emt 0:00:00]} c5 {[%emt 0:00:00]} 2. Nf3 {[%emt 0:00:00]} d6 {[%emt 0:00:00]} 3. d4 {[%emt 0:00:00]} cxd4 {[%emt 0:00:00]} 4. Nxd4 {[%emt 0:00:00]} Nf6 {[%emt 0:00:00]} 5. Nc3 {[%emt 0:00:11]} a6 {[%emt 0:00:06]} 6. f4 {[%emt 0:00:20]} e5 {[%emt 0:04:17]} 7. Nf3 {[%emt 0:01:10]} Qc7 {[%emt 0:01:01]} 8. Bd3 {[%emt 0:11:23]} Be7 {[%emt 0:03:10]} 9. O-O {[%emt 0:02:01]} O-O {[%emt 0:00:19]} 10. Kh1 {[%emt 0:02:41]} b5 {[%emt 0:00:52]} 11. a3 {[%emt 0:01:16]} Bb7 {[%emt 0:00:47]} 12. Qe2 {[%emt 0:02:06]} Nbd7 {[%emt 0:00:59]} 13. Bd2 {[%emt 0:05:47]} Rfe8 {[%emt 0:03:52]} 14. Rae1 {[%emt 0:01:22]} Bf8 {[%emt 0:04:48]} 15. Qf2 {[%emt 0:11:49]} Rac8 {[%emt 0:14:06]} 16. Qh4 {[%emt 0:13:13]} h6 {[%emt 0:07:41]} 17. Qf2 {[%emt 0:06:01]} Bc6 {[%emt 0:07:12]} 18. fxe5 {[%emt 0:04:29]} dxe5 {[%emt 0:00:23]} 19. Nh4 {[%emt 0:01:35]} g6 {[%emt 0:07:32]} 20. Qg3 {[%emt 0:07:17]} Bg7 {[%emt 0:00:33]} 21. Rf3 {[%emt 0:03:36]} Qd6 {[%emt 0:10:04]} 22. Ref1 {[%emt 0:02:13]} Rf8 {[%emt 0:02:25]} 23. Bxh6 {[%emt 0:01:28]} Ne8 {[%emt 0:12:08]} 24. Bxg7 {[%emt 0:00:36]} Nxg7 {[%emt 0:00:02]} 25. Qg4 {[%emt 0:02:39]} Qe6 {[%emt 0:00:43]} 26. Qg5 {[%emt 0:01:34]} a5 {[%emt 0:03:11]} 27. h3 {[%emt 0:03:32]} Nc5 {[%emt 0:02:28]} 28. Rg3 {[%emt 0:03:59]} Nxd3 {[%emt 0:03:15]} 29. cxd3 {[%emt 0:00:06]} b4 {[%emt 0:03:07]} 30. axb4 {[%emt 0:00:10]} axb4 31. Nd1 {[%emt 0:00:48]} Be8 {[%emt 0:03:57]} 32. Rf6 {[%emt 0:02:32]} Qb3 {[%emt 0:00:50]} 33. Ne3 {[%emt 0:00:14]} Qxd3 {[%emt 0:01:49]} 34. Rf1 {[%emt 0:05:39]} Nh5 {[%emt 0:03:18]} 35. Qxh5 {[%emt 0:02:10]} Qxe3 {[%emt 0:00:01]} 36. Nxg6 {[%emt 0:00:27]} fxg6 {[%emt 0:01:00]} 37. Rxf8+ {[%emt 0:00:07]} Kxf8 {[%emt 0:00:09]} 38. Qh8+ {[%emt 0:00:06]} Ke7 {[%emt 0:00:04]} 39. Rxe3 {[%emt 0:00:07]} Ke6 {[%emt 0:00:07]} 40. Rf3 {[%emt 0:00:00]} Rc1+ {[%emt 0:00:00]} 41. Kh2 {[%emt 0:00:38]} Kd6 {[%emt 0:00:08]} 42. Qxe8 {[%emt 0:00:13]} b3 43. Rd3+ {[%emt 0:00:47]} Kc5 {[%emt 0:00:09]} 44. Qc8+ {[%emt 0:00:05]} Kb4 {[%emt 0:00:04]} 45. Qxc1 {[%emt 0:00:09]} g5 {[%emt 0:00:03]} 46. Qc3+ {[%emt 0:00:11]} Ka4 {[%emt 0:00:03]} 47. Qxb3+ {[%emt 0:00:09]} Ka5 {[%emt 0:00:03]} 48. Rd4 1-0

[Event "EYCC Open-U12 2019"]
[Site "Bratislava"]
[Date "2019.08.04"]
[Round "3.19"]
[White "Ristic, Luka"]
[Black "Georgiev, Konstantin"]
[Result "1-0"]
[ECO "B33"]
[WhiteElo "2113"]
[BlackElo "1919"]
[Annotator "NA"]
[PlyCount "136"]
[EventDate "2019.08.02"]
[EventType "swiss"]
[EventCountry "SVK"]
[SourceTitle "playchess.com"]
[Source "ChessBase"]
[SourceQuality "1"]
[TimeControl "40/5400+30:1800+30"]

1. e4 {[%emt 0:00:00]} c5 {[%emt 0:00:00]} 2. Nf3 {[%emt 0:00:00]} Nc6 {[%emt 0:00:00]} 3. d4 {[%emt 0:00:00]} cxd4 {[%emt 0:00:00]} 4. Nxd4 {[%emt 0:00:00]} Nf6 {[%emt 0:00:00]} 5. Nc3 {[%emt 0:00:00]} e6 {[%emt 0:00:00]} 6. Ndb5 {[%emt 0:00:18]} Bb4 {[%emt 0:00:17]} 7. a3 {[%emt 0:00:13]} Bxc3+ {[%emt 0:01:02]} 8. Nxc3 {[%emt 0:00:08]} d5 {[%emt 0:00:04]} 9. exd5 {[%emt 0:00:13]} exd5 {[%emt 0:00:05]} 10. Bd3 {[%emt 0:00:07]} O-O {[%emt 0:00:14]} 11. O-O {[%emt 0:00:07]} d4 {[%emt 0:00:41]} 12. Ne2 {[%emt 0:00:10]} Re8 {[%emt 0:00:55]} 13. b4 {[%emt 0:03:26]} Bg4 {[%emt 0:01:35]} 14. f3 {[%emt 0:00:51]} Bh5 {[%emt 0:00:24]} 15. Nf4 {[%emt 0:00:37]} Bg6 {[%emt 0:00:12]} 16. Nxg6 {[%emt 0:00:21]} hxg6 {[%emt 0:00:05]} 17. f4 {[%emt 0:02:42]} Nd5 {[%emt 0:00:38]} 18. b5 {[%emt 0:04:35]} Nce7 {[%emt 0:01:40]} 19. Qg4 {[%emt 0:05:07]} Ne3 {[%emt 0:00:48]} 20. Bxe3 {[%emt 0:01:00]} dxe3 {[%emt 0:00:06]} 21. Rae1 {[%emt 0:00:56]} Qd4 {[%emt 0:02:21]} 22. Rf3 {[%emt 0:04:01]} Nd5 {[%emt 0:01:32]} 23. Qh4 {[%emt 0:01:28]} Rac8 {[%emt 0:04:13]} 24. Rh3 {[%emt 0:07:01]} f5 {[%emt 0:01:03]} 25. Rf3 {[%emt 0:07:35]} Rc3 {[%emt 0:03:31]} 26. Qg5 {[%emt 0:08:30]} Kf7 {[%emt 0:01:45]} 27. h4 {[%emt 0:04:02]} Nf6 {[%emt 0:05:58]} 28. h5 {[%emt 0:18:56]} gxh5 {[%emt 0:05:32]} 29. Qxf5 {[%emt 0:01:36]} Rc5 {[%emt 0:03:57]} 30. Qg6+ {[%emt 0:01:18]} Kf8 {[%emt 0:00:17]} 31. Kh1 {[%emt 0:01:33]} Ng4 {[%emt 0:02:38]} 32. Qh7 {[%emt 0:01:57]} Re6 {[%emt 0:03:27]} 33. Qh8+ {[%emt 0:04:30]} Kf7 {[%emt 0:00:59]} 34. f5 {[%emt 0:07:35]} Rh6 {[%emt 0:05:44]} 35. Qb8 {[%emt 0:00:04]} Nf2+ {[%emt 0:00:07]} 36. Kg1 {[%emt 0:00:06]} Nxd3 {[%emt 0:00:23]} 37. Qxb7+ {[%emt 0:00:44]} Kg8 {[%emt 0:00:51]} 38. cxd3 {[%emt 0:00:30]} e2+ {[%emt 0:02:57]} 39. Rf2 {[%emt 0:00:07]} Rf6 {[%emt 0:00:35]} 40. Qa8+ {[%emt 0:00:00]} Kh7 {[%emt 0:00:00]} 41. Qe4 {[%emt 0:00:40]} Qd7 {[%emt 0:10:04]} 42. Qxe2 {[%emt 0:02:25]} Rcxf5 {[%emt 0:00:24]} 43. Qe4 {[%emt 0:08:43]} Qxb5 44. a4 Qb6 {[%emt 0:11:32]} 45. d4 {[%emt 0:01:00]} g6 {[%emt 0:00:45]} 46. Rxf5 {[%emt 0:01:15]} Rxf5 {[%emt 0:00:11]} 47. Rc1 {[%emt 0:01:32]} Qd6 {[%emt 0:04:45]} 48. Rf1 {[%emt 0:05:44]} Rg5 {[%emt 0:30:42]} 49. Rf7+ {[%emt 0:03:38]} Kh6 {[%emt 0:00:07]} 50. Rxa7 {[%emt 0:01:07]} Qg3 {[%emt 0:01:10]} 51. Re7 {[%emt 0:08:26]} Ra5 {[%emt 0:13:40]} 52. d5 {[%emt 0:07:35]} Qg5 {[%emt 0:04:38]} 53. Re5 {[%emt 0:01:10]} Qg3 {[%emt 0:01:11]} 54. Re6 {[%emt 0:01:16]} Rc5 {[%emt 0:00:40]} 55. Rxg6+ {[%emt 0:00:17]} Qxg6 {[%emt 0:00:22]} 56. Qe3+ {[%emt 0:00:03]} Kh7 {[%emt 0:00:18]} 57. Qxc5 {[%emt 0:00:06]} Qb1+ {[%emt 0:00:05]} 58. Kh2 {[%emt 0:00:16]} Kg6 {[%emt 0:00:15]} 59. d6 {[%emt 0:00:20]} Qe1 {[%emt 0:00:18]} 60. Qd4 {[%emt 0:01:50]} h4 {[%emt 0:00:22]} 61. Qf4 {[%emt 0:00:35]} Qd1 {[%emt 0:00:39]} 62. Qxh4 {[%emt 0:01:12]} Kf7 {[%emt 0:00:36]} 63. Qe7+ {[%emt 0:00:50]} Kg6 {[%emt 0:00:06]} 64. d7 {[%emt 0:00:19]} Qh5+ {[%emt 0:01:18]} 65. Kg3 {[%emt 0:00:17]} Kf5 {[%emt 0:00:50]} 66. Qc5+ {[%emt 0:00:15]} Kf6 {[%emt 0:00:11]} 67. Qxh5 {[%emt 0:00:05]} Ke6 {[%emt 0:00:03]} 68. Qe8+ {[%emt 0:00:10]} Kd5 1-0